[Event "Late-Titled-Tuesday-Blitz-March-12-2024"]
[Site "Chess.com"]
[Date "2024.03.12"]
[Round "4"]
[White "Mikhail_Bryakin"]
[Black "Mackster23"]
[Result "1-0"]
[WhiteElo "2737"]
[BlackElo "2564"]
[TimeControl "180+1"]
[EndTime "14:39:33 PDT"]
[Termination "Mikhail_Bryakin won by checkmate"]

1. Nf3 {[%clk 0:03:00.2]} 1... d5 {[%clk 0:02:59.7]} 2. c4 {[%clk 0:02:57]} 2...
e6 {[%clk 0:02:58.9]} 3. e3 {[%clk 0:02:53.9]} 3... Nf6 {[%clk 0:02:56.8]} 4.
cxd5 {[%clk 0:02:53.4]} 4... exd5 {[%clk 0:02:56]} 5. b3 {[%clk 0:02:54.1]} 5...
Bd6 {[%clk 0:02:45.9]} 6. Bb2 {[%clk 0:02:54.1]} 6... O-O {[%clk 0:02:45.7]} 7.
Be2 {[%clk 0:02:51.1]} 7... h6 {[%clk 0:02:41.9]} 8. h3 {[%clk 0:02:49.9]} 8...
Bf5 {[%clk 0:02:41.9]} 9. d3 {[%clk 0:02:48.4]} 9... Nbd7 {[%clk 0:02:40.2]} 10.
O-O {[%clk 0:02:48.9]} 10... Re8 {[%clk 0:02:38.2]} 11. Nbd2 {[%clk 0:02:47.8]}
11... c6 {[%clk 0:02:38.2]} 12. a3 {[%clk 0:02:47.4]} 12... a5 {[%clk
0:02:37.4]} 13. Qc2 {[%clk 0:02:33.8]} 13... Bh7 {[%clk 0:02:37.2]} 14. Rac1
{[%clk 0:02:24.3]} 14... Qe7 {[%clk 0:02:37]} 15. Nb1 {[%clk 0:02:17.7]} 15...
Nc5 {[%clk 0:02:29.6]} 16. Qc3 {[%clk 0:02:11.4]} 16... Ne6 {[%clk 0:01:59.9]}
17. Rfe1 {[%clk 0:01:42.9]} 17... Bc7 {[%clk 0:01:56.5]} 18. Bf1 {[%clk
0:01:34.5]} 18... Qd6 {[%clk 0:01:46.7]} 19. g3 {[%clk 0:01:31.4]} 19... Nh5
{[%clk 0:01:35.1]} 20. Bg2 {[%clk 0:01:25.8]} 20... Nxg3 {[%clk 0:01:19.6]} 21.
fxg3 {[%clk 0:01:26.7]} 21... Qxg3 {[%clk 0:01:19.9]} 22. Nbd2 {[%clk
0:01:15.1]} 22... f6 {[%clk 0:01:06.2]} 23. Nf1 {[%clk 0:01:14.6]} 23... Qg6
{[%clk 0:01:05.9]} 24. Rcd1 {[%clk 0:01:09.7]} 24... Qh5 {[%clk 0:01:03.1]} 25.
Qd2 {[%clk 0:01:01.1]} 25... Bf5 {[%clk 0:01:00.1]} 26. Qf2 {[%clk 0:00:55.9]}
26... Nc5 {[%clk 0:00:36.3]} 27. Qh4 {[%clk 0:00:31.9]} 27... Qg6 {[%clk
0:00:17.6]} 28. e4 {[%clk 0:00:18.6]} 28... dxe4 {[%clk 0:00:16.9]} 29. dxe4
{[%clk 0:00:18.4]} 29... Bxe4 {[%clk 0:00:17]} 30. Qg4 {[%clk 0:00:15]} 30...
Qxg4 {[%clk 0:00:14.5]} 31. hxg4 {[%clk 0:00:15.9]} 31... Nxb3 {[%clk
0:00:12.6]} 32. Rd7 {[%clk 0:00:14.9]} 32... Bb6+ {[%clk 0:00:12.8]} 33. Kh2
{[%clk 0:00:15.5]} 33... Nc5 {[%clk 0:00:12.4]} 34. Rd2 {[%clk 0:00:05.2]} 34...
Bd5 {[%clk 0:00:12.1]} 35. Rxe8+ {[%clk 0:00:05.1]} 35... Rxe8 {[%clk
0:00:12.8]} 36. Ng3 {[%clk 0:00:05.1]} 36... Re3 {[%clk 0:00:12.1]} 37. Bd4
{[%clk 0:00:04.2]} 37... Rxf3 {[%clk 0:00:10.3]} 38. Bxf3 {[%clk 0:00:04]} 38...
Bxf3 {[%clk 0:00:11.2]} 39. Rb2 {[%clk 0:00:03.8]} 39... Ba7 {[%clk 0:00:05.9]}
40. Nf5 {[%clk 0:00:04.4]} 40... Na4 {[%clk 0:00:04.9]} 41. Rxb7 {[%clk
0:00:03.5]} 41... Bxd4 {[%clk 0:00:05.3]} 42. Nxd4 {[%clk 0:00:04.2]} 42... Bxg4
{[%clk 0:00:05.2]} 43. Kg3 {[%clk 0:00:04.6]} 43... Bh5 {[%clk 0:00:04.6]} 44.
Ra7 {[%clk 0:00:04.1]} 44... Nc5 {[%clk 0:00:04.6]} 45. Rxa5 {[%clk 0:00:04]}
45... Ne4+ {[%clk 0:00:05.2]} 46. Kf4 {[%clk 0:00:04.6]} 46... Nd6 {[%clk
0:00:05.6]} 47. Nxc6 {[%clk 0:00:04.3]} 47... g5+ {[%clk 0:00:04.8]} 48. Kg3
{[%clk 0:00:03.6]} 48... Kf7 {[%clk 0:00:05.3]} 49. Ra7+ {[%clk 0:00:02.9]}
49... Ke6 {[%clk 0:00:05.5]} 50. Nd8+ {[%clk 0:00:03.5]} 50... Kd5 {[%clk
0:00:05.8]} 51. a4 {[%clk 0:00:04]} 51... f5 {[%clk 0:00:06.3]} 52. a5 {[%clk
0:00:04.5]} 52... f4+ {[%clk 0:00:06.9]} 53. Kh2 {[%clk 0:00:05.2]} 53... g4
{[%clk 0:00:07.1]} 54. Re7 {[%clk 0:00:04.7]} 54... f3 {[%clk 0:00:04.7]} 55.
Rd7 {[%clk 0:00:03.9]} 55... Kc5 {[%clk 0:00:03.2]} 56. Rxd6 {[%clk 0:00:04.4]}
56... Kxd6 {[%clk 0:00:03.5]} 57. a6 {[%clk 0:00:05.1]} 57... Kc7 {[%clk
0:00:03.6]} 58. a7 {[%clk 0:00:05.5]} 58... Kxd8 {[%clk 0:00:04.2]} 59. a8=Q+
{[%clk 0:00:06]} 59... Ke7 {[%clk 0:00:04.9]} 60. Qa5 {[%clk 0:00:06.6]} 60...
Bf7 {[%clk 0:00:04.6]} 61. Kg3 {[%clk 0:00:07]} 61... Be6 {[%clk 0:00:05]} 62.
Qe5 {[%clk 0:00:07.3]} 62... Kf7 {[%clk 0:00:05.3]} 63. Qh5+ {[%clk 0:00:07.4]}
63... Kg7 {[%clk 0:00:05.3]} 64. Qe5+ {[%clk 0:00:08.1]} 64... Kf7 {[%clk
0:00:05.9]} 65. Qd4 {[%clk 0:00:08.5]} 65... Kg6 {[%clk 0:00:05.9]} 66. Qh8
{[%clk 0:00:09]} 66... Bf5 {[%clk 0:00:06]} 67. Qg8+ {[%clk 0:00:09]} 67... Kf6
{[%clk 0:00:06.6]} 68. Qf8+ {[%clk 0:00:09.3]} 68... Kg6 {[%clk 0:00:07.3]} 69.
Qd6+ {[%clk 0:00:09.5]} 69... Kg5 {[%clk 0:00:07]} 70. Qf4+ {[%clk 0:00:09.5]}
70... Kg6 {[%clk 0:00:07]} 71. Qd2 {[%clk 0:00:10]} 71... h5 {[%clk 0:00:06.6]}
72. Kh4 {[%clk 0:00:10.6]} 72... Kf6 {[%clk 0:00:04.1]} 73. Kxh5 {[%clk
0:00:11.1]} 73... Be6 {[%clk 0:00:02.6]} 74. Kh4 {[%clk 0:00:10.8]} 74... Ke7
{[%clk 0:00:02.7]} 75. Qd4 {[%clk 0:00:10.7]} 75... Kf7 {[%clk 0:00:03.1]} 76.
Kg3 {[%clk 0:00:11.3]} 76... Ke7 {[%clk 0:00:03.7]} 77. Kf4 {[%clk 0:00:11.8]}
77... Kf7 {[%clk 0:00:03.8]} 78. Qf2 {[%clk 0:00:12.4]} 78... Kf6 {[%clk
0:00:03.9]} 79. Qh4+ {[%clk 0:00:12.4]} 79... Kg6 {[%clk 0:00:04.6]} 80. Qg5+
{[%clk 0:00:12.7]} 80... Kf7 {[%clk 0:00:05.4]} 81. Ke5 {[%clk 0:00:13]} 81...
Bd7 {[%clk 0:00:05.4]} 82. Qf6+ {[%clk 0:00:13.3]} 82... Kg8 {[%clk 0:00:04]}
83. Qg6+ {[%clk 0:00:13.6]} 83... Kf8 {[%clk 0:00:04.2]} 84. Kf6 {[%clk
0:00:13.7]} 84... f2 {[%clk 0:00:02.5]} 85. Qg7+ {[%clk 0:00:14.3]} 85... Ke8
{[%clk 0:00:02.9]} 86. Qe7# {[%clk 0:00:15.2]} 1-0

[Event "Late-Titled-Tuesday-Blitz-March-12-2024"]
[Site "Chess.com"]
[Date "2024.03.12"]
[Round "4"]
[White "Aram7Adam"]
[Black "Goryachkina"]
[Result "1/2-1/2"]
[WhiteElo "2451"]
[BlackElo "2664"]
[TimeControl "180+1"]
[EndTime "14:39:44 PDT"]
[Termination "Game drawn by repetition"]

1. e4 {[%clk 0:03:00.1]} 1... c6 {[%clk 0:02:56.4]} 2. d4 {[%clk 0:02:59.8]}
2... d5 {[%clk 0:02:55.3]} 3. Nd2 {[%clk 0:02:58.7]} 3... dxe4 {[%clk
0:02:52.9]} 4. Nxe4 {[%clk 0:02:59.6]} 4... Nf6 {[%clk 0:02:53.5]} 5. Nxf6+
{[%clk 0:02:59.5]} 5... exf6 {[%clk 0:02:54.4]} 6. c3 {[%clk 0:02:59.3]} 6...
Bf5 {[%clk 0:02:53.7]} 7. Bd3 {[%clk 0:02:58.1]} 7... Bxd3 {[%clk 0:02:53.7]} 8.
Qxd3 {[%clk 0:02:59]} 8... Bd6 {[%clk 0:02:54]} 9. Ne2 {[%clk 0:02:58.5]} 9...
O-O {[%clk 0:02:54.1]} 10. O-O {[%clk 0:02:52.4]} 10... Nd7 {[%clk 0:02:54]} 11.
Bf4 {[%clk 0:02:52]} 11... Nb6 {[%clk 0:02:50]} 12. Bxd6 {[%clk 0:02:50.1]}
12... Qxd6 {[%clk 0:02:50.1]} 13. Ng3 {[%clk 0:02:51]} 13... Rfe8 {[%clk
0:02:47.4]} 14. Rfe1 {[%clk 0:02:50.8]} 14... Nd5 {[%clk 0:02:40.5]} 15. Nf5
{[%clk 0:02:45.5]} 15... Qd7 {[%clk 0:02:34.8]} 16. g3 {[%clk 0:02:45.1]} 16...
g6 {[%clk 0:02:30.2]} 17. Ne3 {[%clk 0:02:40.2]} 17... Nc7 {[%clk 0:02:27.2]}
18. Kg2 {[%clk 0:02:33]} 18... Kg7 {[%clk 0:02:26.9]} 19. Re2 {[%clk 0:02:29.8]}
19... f5 {[%clk 0:02:18.8]} 20. Rae1 {[%clk 0:02:28.6]} 20... Re6 {[%clk
0:02:14.5]} 21. Kg1 {[%clk 0:01:56.3]} 21... Rae8 {[%clk 0:02:13.8]} 22. Ng2
{[%clk 0:01:55.6]} 22... Nd5 {[%clk 0:02:06.8]} 23. a3 {[%clk 0:01:51.6]} 23...
b5 {[%clk 0:02:04.4]} 24. Re5 {[%clk 0:01:41.6]} 24... Rxe5 {[%clk 0:01:53.9]}
25. Rxe5 {[%clk 0:01:40.9]} 25... Rxe5 {[%clk 0:01:53.7]} 26. dxe5 {[%clk
0:01:41.8]} 26... Qe6 {[%clk 0:01:53.7]} 27. f4 {[%clk 0:01:40.5]} 27... Nb6
{[%clk 0:01:50.4]} 28. Ne3 {[%clk 0:01:37.2]} 28... a5 {[%clk 0:01:46.4]} 29.
Qd4 {[%clk 0:01:35.5]} 29... Nd7 {[%clk 0:01:35.4]} 30. a4 {[%clk 0:01:28.8]}
30... c5 {[%clk 0:01:04.9]} 31. Qd5 {[%clk 0:01:05.9]} 31... Qxd5 {[%clk
0:01:04.2]} 32. Nxd5 {[%clk 0:01:06.8]} 32... bxa4 {[%clk 0:01:04.5]} 33. Kf2
{[%clk 0:01:05.2]} 33... c4 {[%clk 0:00:41]} 34. Ke3 {[%clk 0:00:51.5]} 34...
Nc5 {[%clk 0:00:40.9]} 35. Nb6 {[%clk 0:00:51.3]} 35... Nd3 {[%clk 0:00:40.5]}
36. Nxa4 {[%clk 0:00:49.5]} 36... f6 {[%clk 0:00:32.5]} 37. e6 {[%clk
0:00:43.3]} 37... Kf8 {[%clk 0:00:30.3]} 38. Kd4 {[%clk 0:00:43.4]} 38... Ke7
{[%clk 0:00:30.2]} 39. Kxc4 {[%clk 0:00:43.4]} 39... Ne1 {[%clk 0:00:27.2]} 40.
Kd5 {[%clk 0:00:42.6]} 40... g5 {[%clk 0:00:25.7]} 41. b4 {[%clk 0:00:35.4]}
41... axb4 {[%clk 0:00:25.4]} 42. cxb4 {[%clk 0:00:36.3]} 42... gxf4 {[%clk
0:00:25.9]} 43. gxf4 {[%clk 0:00:37.1]} 43... Nd3 {[%clk 0:00:25.5]} 44. b5
{[%clk 0:00:36.8]} 44... Nxf4+ {[%clk 0:00:25.6]} 45. Kc6 {[%clk 0:00:36.9]}
45... Nxe6 {[%clk 0:00:25]} 46. b6 {[%clk 0:00:36.7]} 46... f4 {[%clk
0:00:25.2]} 47. Nc3 {[%clk 0:00:35.1]} 47... f3 {[%clk 0:00:21]} 48. Ne4 {[%clk
0:00:31.5]} 48... f5 {[%clk 0:00:16.3]} 49. Nf2 {[%clk 0:00:26]} 49... Nd4+
{[%clk 0:00:10.9]} 50. Kd5 {[%clk 0:00:25.4]} 50... Nb5 {[%clk 0:00:10.2]} 51.
b7 {[%clk 0:00:22.8]} 51... Nc7+ {[%clk 0:00:10.2]} 52. Ke5 {[%clk 0:00:23.1]}
52... Na6 {[%clk 0:00:10.5]} 53. Kxf5 {[%clk 0:00:23.5]} 53... Kd7 {[%clk
0:00:10.8]} 54. Kf4 {[%clk 0:00:23.4]} 54... Kc7 {[%clk 0:00:11.2]} 55. Kxf3
{[%clk 0:00:24.1]} 55... Nc5 {[%clk 0:00:11.5]} 56. Kf4 {[%clk 0:00:25]} 56...
Nxb7 {[%clk 0:00:11.1]} 57. Kg5 {[%clk 0:00:25.2]} 57... Kd7 {[%clk 0:00:11.3]}
58. Kh6 {[%clk 0:00:25.4]} 58... Ke7 {[%clk 0:00:11.1]} 59. Kxh7 {[%clk
0:00:26]} 59... Kf7 {[%clk 0:00:11.4]} 60. Kh6 {[%clk 0:00:26.2]} 60... Nd6
{[%clk 0:00:11.5]} 61. Kg5 {[%clk 0:00:26]} 61... Kg7 {[%clk 0:00:11.6]} 62. h4
{[%clk 0:00:25.8]} 62... Nf7+ {[%clk 0:00:11.4]} 63. Kg4 {[%clk 0:00:26.2]}
63... Nh6+ {[%clk 0:00:11.1]} 64. Kf4 {[%clk 0:00:25.5]} 64... Nf7 {[%clk
0:00:11.4]} 65. Nd3 {[%clk 0:00:24.9]} 65... Nh8 {[%clk 0:00:10.6]} 66. Kf5
{[%clk 0:00:24.5]} 66... Ng6 {[%clk 0:00:10.3]} 67. h5 {[%clk 0:00:24.4]} 67...
Ne7+ {[%clk 0:00:09.8]} 68. Kg5 {[%clk 0:00:24.8]} 68... Ng8 {[%clk 0:00:10]}
69. Nc5 {[%clk 0:00:17.9]} 69... Kh7 {[%clk 0:00:07.9]} 70. Ne4 {[%clk
0:00:15.8]} 70... Kg7 {[%clk 0:00:07.7]} 71. Nd6 {[%clk 0:00:13.4]} 71... Kh7
{[%clk 0:00:07.7]} 72. Nc4 {[%clk 0:00:12]} 72... Kg7 {[%clk 0:00:07.7]} 73. Ne5
{[%clk 0:00:12]} 73... Nh6 {[%clk 0:00:06.6]} 74. Nd7 {[%clk 0:00:11.7]} 74...
Nf7+ {[%clk 0:00:06.7]} 75. Kf5 {[%clk 0:00:12]} 75... Nh6+ {[%clk 0:00:05.9]}
76. Kg5 {[%clk 0:00:11.2]} 76... Nf7+ {[%clk 0:00:06.3]} 77. Kf4 {[%clk
0:00:11.5]} 77... Kh6 {[%clk 0:00:05.7]} 78. Kg4 {[%clk 0:00:11.9]} 78... Kg7
{[%clk 0:00:05.9]} 79. Kf5 {[%clk 0:00:11.7]} 79... Nh6+ {[%clk 0:00:06.2]} 80.
Ke6 {[%clk 0:00:11.7]} 80... Ng8 {[%clk 0:00:05.7]} 81. Kf5 {[%clk 0:00:11.7]}
81... Nh6+ {[%clk 0:00:05.9]} 1/2-1/2

[Event "Late-Titled-Tuesday-Blitz-March-12-2024"]
[Site "Chess.com"]
[Date "2024.03.12"]
[Round "4"]
[White "Gabcur"]
[Black "katharinareinecke"]
[Result "1-0"]
[WhiteElo "2309"]
[BlackElo "1973"]
[TimeControl "180+1"]
[EndTime "14:39:47 PDT"]
[Termination "Gabcur won by checkmate"]

1. e4 {[%clk 0:02:55]} 1... c6 {[%clk 0:02:59]} 2. d4 {[%clk 0:02:54]} 2... d5
{[%clk 0:02:50.5]} 3. exd5 {[%clk 0:02:53]} 3... cxd5 {[%clk 0:02:50.4]} 4. c4
{[%clk 0:02:53.7]} 4... Be6 {[%clk 0:02:45.6]} 5. Nc3 {[%clk 0:02:45.2]} 5...
Nf6 {[%clk 0:02:43.5]} 6. Bg5 {[%clk 0:02:38.7]} 6... h6 {[%clk 0:02:39.4]} 7.
Bxf6 {[%clk 0:02:27.4]} 7... exf6 {[%clk 0:02:40.3]} 8. Nf3 {[%clk 0:02:19.3]}
8... dxc4 {[%clk 0:02:33.8]} 9. d5 {[%clk 0:02:17.3]} 9... Bg4 {[%clk
0:02:17.3]} 10. Bxc4 {[%clk 0:02:14.8]} 10... Nd7 {[%clk 0:02:11.7]} 11. O-O
{[%clk 0:02:12.2]} 11... Bxf3 {[%clk 0:01:52]} 12. Qxf3 {[%clk 0:01:47.5]} 12...
Ne5 {[%clk 0:01:50.7]} 13. Bb5+ {[%clk 0:01:45.5]} 13... Ke7 {[%clk 0:01:38]}
14. Qe3 {[%clk 0:01:35.3]} 14... Kd6 {[%clk 0:01:25.5]} 15. Ne4+ {[%clk
0:01:04.2]} 15... Kc7 {[%clk 0:01:19.3]} 16. Rac1+ {[%clk 0:01:03.2]} 16... Kb8
{[%clk 0:01:19]} 17. Rfd1 {[%clk 0:01:02.4]} 17... a6 {[%clk 0:01:12.4]} 18. Bf1
{[%clk 0:00:58.7]} 18... Bd6 {[%clk 0:01:07.8]} 19. h3 {[%clk 0:00:52.6]} 19...
Qd7 {[%clk 0:01:04.6]} 20. f4 {[%clk 0:00:46.4]} 20... Ng6 {[%clk 0:00:59.5]}
21. g3 {[%clk 0:00:44.2]} 21... h5 {[%clk 0:00:52.4]} 22. h4 {[%clk 0:00:41.3]}
22... Re8 {[%clk 0:00:44.3]} 23. Qf3 {[%clk 0:00:34.7]} 23... Qe7 {[%clk
0:00:35.4]} 24. Nc3 {[%clk 0:00:33.5]} 24... Bc5+ {[%clk 0:00:33.4]} 25. Kh2
{[%clk 0:00:32.2]} 25... Qe3 {[%clk 0:00:28.5]} 26. Qxe3 {[%clk 0:00:31.3]}
26... Bxe3 {[%clk 0:00:26]} 27. Rc2 {[%clk 0:00:30.7]} 27... Ka7 {[%clk
0:00:22.2]} 28. d6 {[%clk 0:00:24.5]} 28... Rad8 {[%clk 0:00:21.3]} 29. Re2
{[%clk 0:00:20.6]} 29... Bc5 {[%clk 0:00:20.6]} 30. Rxe8 {[%clk 0:00:18.3]}
30... Rxe8 {[%clk 0:00:21.5]} 31. d7 {[%clk 0:00:18.3]} 31... Rd8 {[%clk
0:00:21.8]} 32. Bh3 {[%clk 0:00:18.7]} 32... Nf8 {[%clk 0:00:21.7]} 33. Re1
{[%clk 0:00:18.3]} 33... Ne6 {[%clk 0:00:21.9]} 34. Bxe6 {[%clk 0:00:18.3]}
34... fxe6 {[%clk 0:00:22.3]} 35. Rxe6 {[%clk 0:00:18.6]} 35... Rxd7 {[%clk
0:00:22.7]} 36. Re2 {[%clk 0:00:19.2]} 36... Bd4 {[%clk 0:00:22.5]} 37. Ne4
{[%clk 0:00:18.5]} 37... Bb6 {[%clk 0:00:21.9]} 38. Kg2 {[%clk 0:00:18.7]} 38...
Rc7 {[%clk 0:00:21.8]} 39. Kf3 {[%clk 0:00:18.9]} 39... Rd7 {[%clk 0:00:20.7]}
40. f5 {[%clk 0:00:18.9]} 40... Rc7 {[%clk 0:00:20.2]} 41. g4 {[%clk 0:00:19.2]}
41... hxg4+ {[%clk 0:00:19.8]} 42. Kxg4 {[%clk 0:00:20.1]} 42... Rc4 {[%clk
0:00:19.2]} 43. Kh5 {[%clk 0:00:19.6]} 43... Bd4 {[%clk 0:00:18.1]} 44. Kg6
{[%clk 0:00:19.3]} 44... Rc7 {[%clk 0:00:15.5]} 45. h5 {[%clk 0:00:18.7]} 45...
Be5 {[%clk 0:00:15.1]} 46. b3 {[%clk 0:00:17.8]} 46... a5 {[%clk 0:00:15]} 47.
Rg2 {[%clk 0:00:17.6]} 47... Kb6 {[%clk 0:00:15.6]} 48. Kh7 {[%clk 0:00:15.5]}
48... g5+ {[%clk 0:00:15.2]} 49. Kg6 {[%clk 0:00:15.5]} 49... Rc6 {[%clk
0:00:13.6]} 50. h6 {[%clk 0:00:15.6]} 50... Rc7 {[%clk 0:00:09.9]} 51. h7 {[%clk
0:00:15.1]} 51... Rc8 {[%clk 0:00:10.2]} 52. Kg7 {[%clk 0:00:14.2]} 52... Rc7+
{[%clk 0:00:10.5]} 53. Kg6 {[%clk 0:00:14.4]} 53... Rc8 {[%clk 0:00:10.5]} 54.
Rg1 {[%clk 0:00:14.5]} 54... Kc6 {[%clk 0:00:09.1]} 55. Rh1 {[%clk 0:00:14.4]}
55... Kd5 {[%clk 0:00:08.8]} 56. h8=Q {[%clk 0:00:14]} 56... Rxh8 {[%clk
0:00:08.9]} 57. Rxh8 {[%clk 0:00:12.5]} 57... Kxe4 {[%clk 0:00:09.8]} 58. Rc8
{[%clk 0:00:12.4]} 58... g4 {[%clk 0:00:09.4]} 59. Kh5 {[%clk 0:00:12.5]} 59...
g3 {[%clk 0:00:09.7]} 60. Rg8 {[%clk 0:00:12.3]} 60... Kxf5 {[%clk 0:00:09.8]}
61. Rg7 {[%clk 0:00:11.7]} 61... Kf4 {[%clk 0:00:10.1]} 62. Rxb7 {[%clk
0:00:11.3]} 62... f5 {[%clk 0:00:10.5]} 63. Rb8 {[%clk 0:00:10.3]} 63... Kf3
{[%clk 0:00:10.8]} 64. Rg8 {[%clk 0:00:08.1]} 64... f4 {[%clk 0:00:10.9]} 65.
Kg6 {[%clk 0:00:07.5]} 65... g2 {[%clk 0:00:10.1]} 66. Kf5 {[%clk 0:00:08.4]}
66... Kf2 {[%clk 0:00:09.4]} 67. Kxe5 {[%clk 0:00:07.2]} 67... f3 {[%clk
0:00:09.4]} 68. Ke4 {[%clk 0:00:07.7]} 68... g1=Q {[%clk 0:00:04.5]} 69. Rxg1
{[%clk 0:00:06.7]} 69... Kxg1 {[%clk 0:00:05.4]} 70. Kxf3 {[%clk 0:00:06.6]}
70... Kf1 {[%clk 0:00:06.1]} 71. Ke3 {[%clk 0:00:06.6]} 71... Ke1 {[%clk
0:00:06.6]} 72. Kd3 {[%clk 0:00:07.1]} 72... Kd1 {[%clk 0:00:06.9]} 73. Kc3
{[%clk 0:00:07.4]} 73... Kc1 {[%clk 0:00:07.4]} 74. a4 {[%clk 0:00:07.1]} 74...
Kb1 {[%clk 0:00:06.4]} 75. b4 {[%clk 0:00:07.7]} 75... axb4+ {[%clk 0:00:04.4]}
76. Kxb4 {[%clk 0:00:08.6]} 76... Ka2 {[%clk 0:00:04.3]} 77. a5 {[%clk
0:00:09.5]} 77... Kb2 {[%clk 0:00:01.7]} 78. a6 {[%clk 0:00:10.4]} 78... Kc2
{[%clk 0:00:02.3]} 79. a7 {[%clk 0:00:10.9]} 79... Kd3 {[%clk 0:00:03.2]} 80.
a8=Q {[%clk 0:00:11.4]} 80... Ke3 {[%clk 0:00:03.4]} 81. Qd8 {[%clk 0:00:09.8]}
81... Kf4 {[%clk 0:00:04.3]} 82. Kc4 {[%clk 0:00:09.5]} 82... Kf5 {[%clk
0:00:05.2]} 83. Kd4 {[%clk 0:00:09.2]} 83... Kg4 {[%clk 0:00:06.1]} 84. Qf8
{[%clk 0:00:09.1]} 84... Kg5 {[%clk 0:00:07]} 85. Ke4 {[%clk 0:00:08.9]} 85...
Kg6 {[%clk 0:00:07.1]} 86. Qf5+ {[%clk 0:00:07.9]} 86... Kh6 {[%clk 0:00:06.6]}
87. Qg4 {[%clk 0:00:07.7]} 87... Kh7 {[%clk 0:00:06.7]} 88. Kf5 {[%clk
0:00:08.4]} 88... Kh8 {[%clk 0:00:07.6]} 89. Kf6 {[%clk 0:00:08.8]} 89... Kh7
{[%clk 0:00:08.5]} 90. Qg7# {[%clk 0:00:08.1]} 1-0